fUSD/lending_fUSD_20250215
["ID","MTS","AMOUNT","RATE_DAILY","PERIOD"]
[353132234,1739591440826,-1042.01,0.00011041,2]
[353132235,1739591440836,-500.0,0.00011041,2]
[353132236,1739591440846,-602.76,0.00011041,2]
[353132237,1739591440855,-1440.09,0.00011041,2]
[353132238,1739591440865,-1007.21,0.00011041,2]
[353132239,1739591440875,-500.0,0.00011041,2]
[353132240,1739591440884,-500.0,0.00011041,2]
[353132241,1739591440894,-714.45,0.00011041,2]
[353132242,1739591440905,-500.0,0.00011041,2]
[353132243,1739591440915,-500.0,0.00011041,2]
[353132244,1739591440924,-1480.5,0.00011041,2]
[353132245,1739591440935,-500.0,0.00011041,2]
[353132246,1739591440945,-500.0,0.00011041,2]
[353132247,1739591440955,-500.0,0.00011041,2]
[353132248,1739591440965,-500.0,0.00011041,2]
[353132249,1739591440975,-500.0,0.00011041,2]
[353132250,1739591440984,-566.71,0.00011041,2]
[353132251,1739591440994,-345.72004615,0.00011041,2]
[353132252,1739591441316,-389.75995385,0.00011041,2]
[353132253,1739591441327,-410.24001615,0.00011041,2]
[353132254,1739591441338,-199.12998385,0.00011041,2]
[353132255,1739591441348,-500.0,0.00011041,2]
[353132256,1739591441358,-500.0,0.00011041,2]
[353132257,1739591441368,-472.00243698,0.00011041,2]
[353132258,1739591441380,-174.08756302,0.00011041,2]
[353132259,1739591441390,-500.0,0.00011041,2]
[353132260,1739591441399,-663.52,0.00011041,2]
[353132261,1739591441408,-500.0,0.00011041,2]
[353132262,1739591441418,-9.46549448,0.00011041,2]
[353132263,1739591441429,-250.0,0.00011041,2]
[353132264,1739591441472,-240.53450552,0.00011041,2]
[353132265,1739591441481,-500.0,0.00011041,2]
[353132266,1739591441491,-1.93960903,0.00011041,2]
[353132267,1739591441520,-498.06039097,0.00011041,2]
[353132268,1739591441530,-500.0,0.00011041,2]
[353132269,1739591441539,-500.0,0.00011041,2]
[353132270,1739591441548,-500.0,0.00011041,2]
[353132271,1739591441559,-626.57,0.00011041,2]
[353132272,1739591441570,-500.0,0.00011041,2]
[353132273,1739591441579,-500.0,0.00011041,2]
[353132274,1739591441589,-150.0,0.00011054,2]
[353132275,1739591441598,-500.0,0.0001108,2]
[353132276,1739591441608,-500.0,0.0001108,2]
[353132277,1739591441618,-606.46,0.0001108,2]
[353132278,1739591441628,-500.0,0.0001108,2]
[353132279,1739591441638,-500.0,0.0001108,2]
[353132280,1739591441647,-500.0,0.0001108,2]
[353132281,1739591441658,-500.0,0.0001108,2]
[353132282,1739591441670,-500.0,0.0001108,2]
[353132283,1739591441680,-500.0,0.0001108,2]
[353132284,1739591441689,-500.0,0.0001108,2]
[353132285,1739591441699,-500.0,0.0001108,2]
[353132286,1739591441708,-500.0,0.0001108,2]
[353132287,1739591441718,-500.0,0.0001108,2]
[353132288,1739591441728,-500.0,0.0001108,2]
[353132289,1739591441738,-500.0,0.0001108,2]
[353132290,1739591441749,-523.86,0.0001108,2]
[353132291,1739591441759,-500.0,0.0001108,2]
[353132292,1739591441769,-500.0,0.0001108,2]
[353132293,1739591441778,-534.2,0.0001108,2]
[353132294,1739591441788,-500.0,0.0001108,2]
[353132295,1739591441797,-500.0,0.0001108,2]
[353132296,1739591441807,-500.0,0.0001108,2]
[353132297,1739591441817,-525.05,0.0001108,2]
[353132298,1739591441827,-500.0,0.0001108,2]
[353132299,1739591441838,-500.0,0.0001108,2]
[353132300,1739591441848,-500.0,0.0001108,2]
[353132301,1739591441858,-281.72147494,0.0001108,2]
[353132302,1739591441868,-500.0,0.0001108,2]
[353132303,1739591441877,-500.0,0.0001108,2]
[353132304,1739591441887,-500.0,0.0001108,2]
[353132305,1739591441896,-500.0,0.0001108,2]
[353132306,1739591441906,-507.2,0.0001108,2]
[353132307,1739591441918,-840.82,0.0001108,2]
[353132308,1739591441928,-500.0,0.0001108,2]
[353132309,1739591441939,-500.0,0.0001108,2]
[353132310,1739591441948,-500.0,0.0001108,2]
[353132311,1739591441958,-500.0,0.0001108,2]
[353132312,1739591441968,-506.0795098,0.0001108,2]
[353132313,1739591441977,-532.13,0.0001108,2]
[353132314,1739591441987,-500.0,0.0001108,2]
[353132315,1739591441996,-500.0,0.0001108,2]
[353132316,1739591442006,-591.91,0.0001108,2]
[353132317,1739591442015,-500.0,0.0001108,2]
[353132318,1739591442024,-500.0,0.0001108,2]
[353132319,1739591442033,-579.85,0.0001108,2]
[353132320,1739591442042,-577.6,0.0001108,2]
[353132321,1739591442052,-500.0,0.0001108,2]
[353132322,1739591442062,-562.99,0.0001108,2]
[353132323,1739591442071,-500.0,0.0001108,2]
[353132324,1739591442080,-500.0,0.0001108,2]
[353132325,1739591442090,-947.28,0.0001108,2]
[353132326,1739591442099,-202.84,0.0001108,2]
[353132327,1739591442108,-671.25,0.0001108,2]
[353132328,1739591442118,-500.0,0.0001108,2]
[353132329,1739591442127,-391.03,0.0001108,2]
[353132330,1739591442137,-500.0,0.0001108,2]
[353132331,1739591442147,-500.0,0.0001108,2]
[353132332,1739591442157,-500.0,0.0001108,2]
[353132333,1739591442166,-689.14,0.0001108,2]
[353132334,1739591442175,-500.0,0.0001108,2]
[353132335,1739591442185,-500.0,0.0001108,2]
[353132336,1739591442194,-500.0,0.0001108,2]
[353132337,1739591442203,-660.67,0.0001108,2]
[353132338,1739591442213,-500.0,0.0001108,2]
[353132339,1739591442222,-500.0,0.0001108,2]
[353132340,1739591442233,-500.0,0.0001108,2]
[353132341,1739591442242,-603.01,0.0001108,2]
[353132342,1739591442253,-500.0,0.0001108,2]
[353132343,1739591442263,-503.03,0.0001108,2]
[353132344,1739591442273,-500.0,0.0001108,2]
[353132345,1739591442282,-500.0,0.0001108,2]
[353132346,1739591442293,-698.83,0.0001108,2]
[353132347,1739591442303,-500.0,0.0001108,2]
[353132348,1739591442314,-1286.29,0.0001108,2]
[353132349,1739591442327,-500.0,0.0001108,2]
[353132350,1739591442338,-957.51,0.0001108,2]
[353132351,1739591442348,-590.77,0.0001108,2]
[353132352,1739591442358,-504.98107594,0.0001108,2]
[353132353,1739591442369,-577.21,0.0001108,2]
[353132354,1739591442379,-500.0,0.0001108,2]
[353132355,1739591442389,-1362.33,0.0001108,2]
[353132356,1739591442399,-500.94,0.0001108,2]
[353132357,1739591442408,-500.0,0.0001108,2]
[353132358,1739591442419,-537.23,0.0001108,2]
[353132359,1739591442428,-500.0,0.0001108,2]
[353132360,1739591442438,-508.27433019,0.0001108,2]
[353132361,1739591442448,-1093.04,0.0001108,2]
[353132362,1739591442459,-750.63,0.0001108,2]
[353132363,1739591442468,-586.0,0.0001108,2]
[353132364,1739591442478,-500.0,0.0001108,2]
[353132365,1739591442488,-1563.12,0.0001108,2]
[353132366,1739591442498,-668.95,0.0001108,2]
[353132367,1739591442507,-498.70090655,0.0001108,2]
[353132368,1739591442517,-500.0,0.0001108,2]
[353132369,1739591442527,-560.84,0.0001108,2]
[353132370,1739591442538,-500.0,0.0001108,2]
[353132371,1739591442548,-500.0,0.0001108,2]
[353132372,1739591442558,-559.34254572,0.0001108,2]
[353132373,1739591442569,-984.49,0.0001108,2]
[353132374,1739591442580,-500.0,0.0001108,2]
[353132375,1739591442591,-500.0,0.0001108,2]
[353132376,1739591442602,-815.22,0.0001108,2]
[353132377,1739591442612,-500.0,0.0001108,2]
[353132378,1739591442622,-840.48,0.0001108,2]
[353132379,1739591442632,-500.0,0.0001108,2]
[353132380,1739591442642,-704.61,0.0001108,2]
[353132381,1739591442652,-661.4,0.0001108,2]
[353132382,1739591442665,-500.0,0.0001108,2]
[353132383,1739591442676,-1218.57,0.0001108,2]
[353132384,1739591442686,-500.0,0.0001108,2]
[353132385,1739591442696,-1115.38,0.0001108,2]
[353132386,1739591442707,-820.3,0.0001108,2]
[353132387,1739591442717,-688.63,0.0001108,2]
[353132388,1739591442726,-544.05,0.0001108,2]
[353132389,1739591442738,-500.0,0.0001108,2]
[353132390,1739591442749,-1344.0,0.0001108,2]
[353132391,1739591442760,-862.66,0.0001108,2]
[353132392,1739591442771,-877.57,0.0001108,2]
[353132393,1739591442782,-500.0,0.0001108,2]
[353132394,1739591442792,-500.0,0.0001108,2]
[353132395,1739591442802,-500.0,0.0001108,2]
[353132396,1739591442812,-674.61,0.0001108,2]
[353132397,1739591442822,-500.0,0.0001108,2]
[353132398,1739591442832,-1591.15,0.0001108,2]
[353132399,1739591442842,-500.0,0.0001108,2]
[353132400,1739591442852,-500.0,0.0001108,2]
[353132401,1739591442863,-778.65,0.0001108,2]
[353132402,1739591442873,-500.0,0.0001108,2]
[353132403,1739591442884,-500.0,0.0001108,2]
[353132404,1739591442894,-2801.04,0.0001108,2]
[353132405,1739591442905,-1185.61,0.0001108,2]
[353132406,1739591442916,-1113.73,0.0001108,2]
[353132407,1739591442926,-500.0,0.0001108,2]
[353132408,1739591442936,-558.56,0.0001108,2]
[353132409,1739591442947,-1294.83,0.0001108,2]
[353132410,1739591442957,-676.59,0.0001108,2]
[353132411,1739591442969,-500.0,0.0001108,2]
[353132412,1739591442978,-580.52,0.0001108,2]
[353132413,1739591442988,-226.33,0.0001108,2]
[353132414,1739591442998,-500.0,0.0001108,2]
[353132415,1739591443008,-500.0,0.0001108,2]
[353132416,1739591443019,-500.0,0.0001108,2]
[353132417,1739591443028,-531.67,0.0001108,2]
[353132418,1739591443038,-829.2,0.0001108,2]
[353132419,1739591443048,-1190.27,0.0001108,2]
[353132420,1739591443059,-600.22,0.0001108,2]
[353132421,1739591443071,-500.0,0.0001108,2]
[353132422,1739591443081,-500.0,0.0001108,2]
[353132423,1739591443091,-500.0,0.0001108,2]
[353132424,1739591443101,-500.0,0.0001108,2]
[353132425,1739591443111,-500.0,0.0001108,2]
[353132426,1739591443121,-500.0,0.0001108,2]
[353132427,1739591443131,-500.0,0.0001108,2]
[353132428,1739591443140,-903.09,0.0001108,2]
[353132429,1739591443150,-500.0,0.0001108,2]
[353132430,1739591443160,-1839.4,0.0001108,2]
[353132431,1739591443170,-520.96,0.0001108,2]
[353132432,1739591443181,-772.43,0.0001108,2]
[353132433,1739591443191,-500.0,0.0001108,2]
[353132434,1739591443201,-500.0,0.0001108,2]
[353132435,1739591443211,-500.0,0.0001108,2]
[353132436,1739591443221,-1444.32,0.0001108,2]
[353132437,1739591443232,-500.0,0.0001108,2]
[353132438,1739591443242,-578.27,0.0001108,2]
[353132439,1739591443252,-584.53,0.0001108,2]
[353132440,1739591443263,-738.04,0.0001108,2]
[353132441,1739591443273,-592.01,0.0001108,2]
[353132442,1739591443283,-714.96,0.00011081,2]
[353132443,1739591443293,-1021.72,0.00011081,2]
[353132444,1739591443303,-683.57,0.00011081,2]
[353132445,1739591443313,-500.0,0.00011081,2]
[353132446,1739591443324,-693.308806,0.00011081,2]
[353132447,1739591443334,-570.01,0.00011081,2]
[353132448,1739591443345,-743.73,0.00011081,2]
[353132449,1739591443355,-800.056383,0.00011081,2]
[353132450,1739591443366,-500.0,0.00011081,2]
[353132451,1739591443376,-990.3,0.00011081,2]
[353132452,1739591443386,-692.77,0.00011081,2]
[353132453,1739591443397,-842.37,0.00011081,2]
[353132454,1739591443407,-500.0,0.00011081,2]
[353132455,1739591443418,-1801.48,0.00011081,2]
[353132456,1739591443429,-804.54,0.00011081,2]
[353132457,1739591443440,-872.2,0.00011081,2]
[353132458,1739591443449,-798.02,0.00011081,2]
[353132459,1739591443459,-500.0,0.00011081,2]
[353132460,1739591443470,-748.58,0.00011081,2]
[353132461,1739591443480,-1014.18,0.00011081,2]
[353132462,1739591443490,-1017.03,0.00011081,2]
[353132463,1739591443500,-1255.81,0.00011081,2]
[353132464,1739591443511,-1436.53,0.00011081,2]
[353132465,1739591443521,-753.65,0.00011081,2]
[353132466,1739591443531,-1056.08,0.00011081,2]
[353132467,1739591443541,-1096.86,0.00011081,2]
[353132468,1739591443551,-1586.95,0.00011081,2]
[353132469,1739591443561,-1425.81,0.00011081,2]
[353132470,1739591443571,-1424.59,0.00011081,2]
[353132471,1739591443582,-500.0,0.00011081,2]
[353132472,1739591443592,-1506.77,0.00011081,2]
[353132474,1739591443603,-1319.52,0.00011081,2]
[353132476,1739591443613,-3808.84,0.00011081,2]
[353132478,1739591443623,-4116.26,0.00011081,2]
[353132480,1739591443634,-703.7,0.00011081,2]
[353132483,1739591443644,-500.0,0.00011081,2]
[353132485,1739591443654,-938.36,0.00011081,2]
[353132487,1739591443669,-1266.26,0.00011081,2]
[353132489,1739591443679,-1893.27,0.00011081,2]
[353132490,1739591443689,-941.53,0.00011081,2]
[353132491,1739591443699,-1835.22,0.00011081,2]
[353132492,1739591443710,-1202.58,0.00011081,2]
[353132493,1739591443719,-1074.75,0.00011081,2]
[353132494,1739591443730,-2312.02,0.00011081,2]
[353132495,1739591443741,-509.58,0.00011081,2]
[353132496,1739591443752,-4595.88951143,0.00011085,2]
[353132497,1739591443762,-1701.0968165,0.00011087,2]
[353132498,1739591443772,-182.48457865,0.00011098,2]
[353132499,1739591443783,-25569.63062515,0.00011099,2]
[353132500,1739591443794,-25569.63062511,0.00011099,2]
[353132501,1739591443804,-8024.305894,0.000111,2]
[353132502,1739591443814,-500.0,0.00011112,2]
[353132503,1739591443825,-2000.0,0.00011112,2]
[353132504,1739591443835,-500.0,0.00011112,2]
[353132505,1739591443845,-200.0,0.00011112,2]
[353132506,1739591443855,-500.0,0.00011118,2]
[353132507,1739591443865,-570.59,0.00011118,2]
[353132508,1739591443875,-500.0,0.00011118,2]
[353132509,1739591443886,-601.34,0.00011118,2]
[353132510,1739591443896,-500.0,0.00011118,2]
[353132511,1739591443906,-815.15,0.00011118,2]
[353132512,1739591443916,-720.06,0.00011118,2]
[353132513,1739591443927,-717.7,0.00011118,2]
[353132514,1739591443938,-533.56,0.00011118,2]
[353132515,1739591443948,-665.5,0.00011118,2]
[353132516,1739591443958,-885.02,0.00011118,2]
[353132517,1739591443968,-643.05,0.00011118,2]
[353132518,1739591443979,-732.52,0.00011118,2]
[353132519,1739591443989,-500.0,0.00011118,2]
[353132520,1739591443999,-809.04,0.00011118,2]
[353132521,1739591444009,-579.99,0.00011118,2]
[353132522,1739591444019,-546.6,0.00011118,2]
[353132523,1739591444029,-500.0,0.00011118,2]
[353132524,1739591444040,-500.0,0.00011118,2]
[353132525,1739591444050,-500.0,0.00011118,2]
[353132526,1739591444060,-500.0,0.00011118,2]
[353132527,1739591444071,-500.0,0.00011118,2]
[353132528,1739591444081,-500.0,0.00011118,2]
[353132529,1739591444090,-500.0,0.00011119,2]
[353132530,1739591444100,-500.0,0.00011119,2]
[353132531,1739591444110,-500.0,0.00011119,2]
[353132532,1739591444120,-151.0,0.0001112,2]
[353132533,1739591444130,-151.0,0.0001112,2]
[353132534,1739591444140,-151.0,0.0001112,2]
[353132535,1739591444151,-151.0,0.0001112,2]
[353132536,1739591444160,-151.0,0.0001112,2]
[353132537,1739591444171,-151.0,0.0001112,2]
[353132538,1739591444181,-151.0,0.0001112,2]
[353132539,1739591444191,-151.0,0.0001112,2]
[353132540,1739591444201,-151.0,0.0001112,2]
[353132541,1739591444211,-151.0,0.0001112,2]
[353132542,1739591444221,-151.0,0.0001112,2]
[353132543,1739591444231,-151.0,0.0001112,2]
[353132544,1739591444241,-151.0,0.0001112,2]
[353132545,1739591444252,-151.0,0.0001112,2]
[353132546,1739591444263,-151.0,0.0001112,2]
[353132547,1739591444274,-151.0,0.0001112,2]
[353132548,1739591444284,-151.0,0.0001112,2]
[353132549,1739591444294,-151.0,0.0001112,2]
[353132550,1739591444304,-151.0,0.0001112,2]
[353132551,1739591444314,-151.0,0.0001112,2]
[353132552,1739591444325,-151.0,0.0001112,2]
[353132553,1739591444334,-151.0,0.0001112,2]
[353132554,1739591444344,-151.0,0.0001112,2]
[353132555,1739591444354,-151.0,0.0001112,2]
[353132556,1739591444364,-151.0,0.0001112,2]
[353132557,1739591444374,-151.0,0.0001112,2]
[353132558,1739591444383,-151.0,0.0001112,2]
[353132559,1739591444393,-151.0,0.0001112,2]
[353132560,1739591444404,-151.0,0.0001112,2]
[353132561,1739591444414,-151.0,0.0001112,2]
[353132562,1739591444424,-151.0,0.0001112,2]
[353132563,1739591444434,-151.0,0.0001112,2]
[353132564,1739591444443,-151.0,0.0001112,2]
[353132565,1739591444454,-151.0,0.0001112,2]
[353132566,1739591444464,-151.0,0.0001112,2]
[353132567,1739591444474,-151.0,0.0001112,2]
[353132568,1739591444484,-151.0,0.0001112,2]
[353132569,1739591444495,-151.0,0.0001112,2]
[353132570,1739591444505,-151.0,0.0001112,2]
[353132571,1739591444515,-151.0,0.0001112,2]
[353132572,1739591444525,-507.79,0.00011122,2]
[353132573,1739591444535,-500.0,0.00011123,2]
[353132574,1739591444545,-500.0,0.00011123,2]
[353132575,1739591444555,-462.71221723,0.00011123,2]
[353132576,1739591444565,-549.29,0.00011123,2]
[353132577,1739591444575,-500.0,0.00011123,2]
[353132578,1739591444587,-500.0,0.00011123,2]
[353132579,1739591444597,-500.0,0.00011123,2]
[353132580,1739591444607,-500.0,0.00011123,2]
[353132581,1739591444617,-500.0,0.00011123,2]
[353132582,1739591444627,-500.0,0.00011123,2]
[353132583,1739591444637,-500.0,0.00011123,2]
[353132584,1739591444648,-500.0,0.00011123,2]
[353132585,1739591444661,-500.0,0.00011123,2]
[353132586,1739591444671,-505.18,0.00011123,2]
[353132587,1739591444682,-500.0,0.00011123,2]
[353132588,1739591444691,-500.0,0.00011123,2]
[353132589,1739591444703,-500.0,0.00011123,2]
[353132590,1739591444713,-500.0,0.00011123,2]
[353132591,1739591444723,-500.0,0.00011123,2]
[353132592,1739591444733,-500.0,0.00011123,2]
[353132593,1739591444745,-301.25130394,0.00011123,2]
[353132594,1739591444754,-500.0,0.00011123,2]
[353132595,1739591444765,-500.0,0.00011123,2]
[353132596,1739591444775,-500.0,0.00011123,2]
[353132597,1739591444785,-500.0,0.00011123,2]
[353132598,1739591444796,-500.0,0.00011123,2]
[353132599,1739591444806,-500.0,0.00011123,2]
[353132600,1739591444818,-500.0,0.00011123,2]
[353132601,1739591445113,-500.0,0.00011123,2]
[353132602,1739591445125,-500.0,0.00011123,2]
[353132603,1739591445135,-500.0,0.00011123,2]
[353132604,1739591445145,-500.0,0.00011123,2]
[353132605,1739591445155,-500.0,0.00011123,2]
[353132606,1739591445165,-335.12710109,0.00011123,2]
[353132607,1739591445174,-500.0,0.00011123,2]
[353132608,1739591445184,-500.0,0.00011123,2]
[353132609,1739591445194,-500.0,0.00011123,2]
[353132610,1739591445203,-500.0,0.00011123,2]
[353132611,1739591445213,-500.0,0.00011123,2]
[353132612,1739591445222,-838.86,0.00011123,2]
[353132613,1739591445231,-500.0,0.00011123,2]
[353132614,1739591445240,-500.0,0.00011123,2]
[353132615,1739591445251,-500.0,0.00011123,2]
[353132616,1739591445261,-500.0,0.00011123,2]
[353132617,1739591445271,-500.0,0.00011123,2]
[353132618,1739591445281,-500.0,0.00011123,2]
[353132619,1739591445291,-500.0,0.00011123,2]
[353132620,1739591445301,-624.26,0.00011123,2]
[353132621,1739591445311,-1082.97,0.00011123,2]
[353132622,1739591445321,-500.0,0.00011123,2]
[353132623,1739591445331,-500.0,0.00011123,2]
[353132624,1739591445341,-500.0,0.00011123,2]
[353132625,1739591445351,-500.0,0.00011123,2]
[353132626,1739591445361,-500.0,0.00011123,2]
[353132627,1739591445371,-500.0,0.00011123,2]
[353132628,1739591445381,-500.0,0.00011123,2]
[353132629,1739591445391,-500.0,0.00011123,2]
[353132630,1739591445401,-500.0,0.00011123,2]
[353132631,1739591445410,-500.0,0.00011123,2]
[353132632,1739591445419,-500.0,0.00011123,2]
[353132633,1739591445428,-500.0,0.00011123,2]
[353132634,1739591445438,-500.0,0.00011123,2]
[353132635,1739591445447,-500.0,0.00011123,2]
[353132636,1739591445457,-500.0,0.00011123,2]
[353132637,1739591445467,-787.99,0.00011123,2]
[353132638,1739591445477,-500.0,0.00011123,2]
[353132639,1739591445487,-500.0,0.00011123,2]
[353132640,1739591445496,-500.0,0.00011123,2]
[353132641,1739591445505,-500.0,0.00011123,2]
[353132642,1739591445515,-500.0,0.00011123,2]
[353132643,1739591445524,-500.0,0.00011123,2]
[353132644,1739591445534,-500.0,0.00011123,2]
[353132645,1739591445544,-500.0,0.00011123,2]
[353132646,1739591445555,-500.0,0.00011123,2]
[353132647,1739591445565,-512.32,0.00011123,2]
[353132648,1739591445575,-500.0,0.00011123,2]
[353132649,1739591445584,-500.0,0.00011123,2]
[353132650,1739591445594,-500.0,0.00011123,2]
[353132651,1739591445604,-500.0,0.00011123,2]
[353132652,1739591445614,-500.0,0.00011123,2]
[353132653,1739591445624,-500.0,0.00011123,2]
[353132654,1739591445634,-500.0,0.00011123,2]
[353132655,1739591445644,-500.0,0.00011123,2]
[353132656,1739591445655,-500.0,0.00011123,2]
[353132657,1739591445670,-500.0,0.00011123,2]
[353132658,1739591445680,-500.0,0.00011123,2]
[353132659,1739591445689,-500.0,0.00011123,2]
[353132660,1739591445699,-500.0,0.00011123,2]
[353132661,1739591445710,-500.0,0.00011123,2]
[353132662,1739591445720,-500.0,0.00011123,2]
[353132663,1739591445730,-500.0,0.00011123,2]
[353132664,1739591445741,-500.0,0.00011123,2]
[353132665,1739591445752,-500.0,0.00011123,2]
[353132666,1739591445763,-1101.17,0.00011123,2]
[353132667,1739591445773,-500.0,0.00011123,2]
[353132668,1739591445783,-500.0,0.00011123,2]
[353132669,1739591445793,-500.0,0.00011123,2]
[353132670,1739591445804,-500.0,0.00011123,2]
[353132671,1739591445815,-1132.9,0.00011123,2]
[353132672,1739591445826,-500.0,0.00011123,2]
[353132673,1739591445836,-1581.21,0.00011123,2]
[353132674,1739591445845,-500.0,0.00011123,2]
[353132675,1739591445855,-500.0,0.00011123,2]
[353132676,1739591445866,-500.0,0.00011123,2]
[353132677,1739591445875,-552.34,0.00011123,2]
[353132678,1739591445886,-1042.01,0.00011123,2]
[353132679,1739591445895,-1337.98,0.00011123,2]
[353132680,1739591445906,-500.0,0.00011123,2]
[353132681,1739591445916,-602.76,0.00011123,2]
[353132682,1739591445926,-1440.09,0.00011123,2]
[353132683,1739591445938,-1007.21,0.00011123,2]
[353132684,1739591445948,-500.0,0.00011123,2]
[353132685,1739591445958,-500.0,0.00011123,2]
[353132686,1739591445967,-714.45,0.00011123,2]
[353132687,1739591445977,-1516.1,0.00011123,2]
[353132688,1739591445987,-500.0,0.00011123,2]
[353132689,1739591445996,-500.0,0.00011123,2]
[353132691,1739591446006,-1480.5,0.00011123,2]
[353132693,1739591446016,-500.0,0.00011123,2]
[353132694,1739591446026,-500.0,0.00011123,2]
[353132695,1739591446036,-500.0,0.00011123,2]
[353132696,1739591446045,-500.0,0.00011123,2]
[353132697,1739591446054,-500.0,0.00011123,2]
[353132698,1739591446064,-671.15,0.00011123,2]
[353132699,1739591446074,-566.71,0.00011123,2]
[353132700,1739591446083,-735.48,0.00011123,2]
[353132701,1739591446093,-500.0,0.00011123,2]
[353132702,1739591446102,-609.37,0.00011123,2]
[353132703,1739591446112,-500.0,0.00011123,2]
[353132704,1739591446121,-952.81,0.00011123,2]
[353132705,1739591446131,-500.0,0.00011123,2]
[353132706,1739591446142,-646.09,0.00011123,2]
[353132707,1739591446153,-500.0,0.00011123,2]
[353132708,1739591446164,-663.52,0.00011123,2]
[353132709,1739591446174,-500.0,0.00011123,2]
[353132710,1739591446184,-500.0,0.00011123,2]
[353132711,1739591446195,-500.0,0.00011123,2]
[353132712,1739591446206,-500.0,0.00011123,2]
[353132713,1739591446216,-500.0,0.00011123,2]
[353132714,1739591446227,-500.0,0.00011123,2]
[353132715,1739591446239,-500.0,0.00011123,2]
[353132716,1739591446250,-626.57,0.00011123,2]
[353132717,1739591446261,-500.0,0.00011123,2]
[353132718,1739591446270,-500.0,0.00011123,2]
[353132719,1739591446281,-3441.085,0.00011129,2]
[353132720,1739591446290,-150.0,0.00011129,2]
[353132721,1739591446299,-150.0,0.00011129,2]
[353132722,1739591446309,-158.47287147,0.00011154,2]
[353132723,1739591446318,-560.84,0.00011162,2]
[353132724,1739591446328,-500.0,0.00011162,2]
[353132725,1739591446338,-500.0,0.00011162,2]
[353132726,1739591446348,-840.48,0.00011162,2]
[353132727,1739591446358,-661.4,0.00011162,2]
[353132728,1739591446367,-820.3,0.00011162,2]
[353132729,1739591446376,-688.63,0.00011162,2]
[353132730,1739591446386,-862.66,0.00011162,2]
[353132731,1739591446395,-877.57,0.00011162,2]
[353132732,1739591446404,-674.61,0.00011162,2]
[353132733,1739591446414,-500.0,0.00011162,2]
[353132734,1739591446423,-778.65,0.00011162,2]
[353132735,1739591446432,-1113.73,0.00011162,2]
[353132736,1739591446442,-676.59,0.00011162,2]
[353132737,1739591446451,-500.0,0.00011162,2]
[353132738,1739591446460,-500.0,0.00011162,2]
[353132739,1739591446469,-829.2,0.00011162,2]
[353132740,1739591446479,-600.22,0.00011162,2]
[353132741,1739591446488,-500.0,0.00011162,2]
[353132742,1739591446497,-500.0,0.00011162,2]
[353132743,1739591446506,-520.96,0.00011162,2]
[353132744,1739591446515,-772.43,0.00011162,2]